Cogmind - Beta 10.2 @@@ ROGUE MODE // 2021.07.03 @ 21:22:46 Player: Plexion Result: Destroyed by D-53 Grenadier with Mini Grenade Launcher Performance ------------- Evolutions (1) 500 Regions Visited (4) 800 Robots Destroyed (22) 110 Value Destroyed (513) 513 Prototype IDs (0) 0 Alien Tech Used (0) 0 Bonus (227) 227 TOTAL SCORE: 2150 Bonus ------- Follower Combat Kills 248 Friendly Fire -21 Cogmind --------- Core Integrity 0/400 Matter 285/300 Energy 100/100 System Corruption 0% Temperature Cool (0) Movement Core (600) Ox11 Location -9/Mines Parts ------- > --- POWER (1) -------- (None) > --- PROPULSION (2) --- (None) > --- UTILITY (4) ------ Small Storage Unit Large Storage Unit Large Storage Unit > --- WEAPON (2) ------- (None) > --- INVENTORY (18) --- Rocket Launcher Peak State ------------ > --- POWER ------------ Ion Engine > --- PROPULSION ------- Light Treads Light Treads > --- UTILITY ---------- Large Storage Unit Large Storage Unit > --- WEAPON ----------- Medium Laser Small Laser > --- INVENTORY -------- Light Ion Engine Small Storage Unit Grenade Launcher Rocket Launcher [Rating: 7] Favorites ----------- Power Ion Engine Engine Ion Engine Propulsion Light Treads Treads Light Treads Utility Large Storage Unit Storage Large Storage Unit Weapon Grenade Launcher Energy Gun Medium Laser Ballistic Gun Assault Rifle Launcher Grenade Launcher Build | -11 -10 -10 -9 -9 ------- Run | Scr Mat Min Mat Min Slots Evolved 2 | . . . 2 . Power . | . . . . . Propulsion . | . . . . . Utility 2 | . . . 2 . Weapon . | . . . . . Parts Attached 19 | 7 3 . 5 4 Power 2 | 1 . . . 1 Engine 2 | 1 . . . 1 Core . | . . . . . Reactor . | . . . . . Propulsion 3 | 2 . . 1 . Treads 3 | 2 . . 1 . Leg . | . . . . . Wheel . | . . . . . Hover . | . . . . . Flight . | . . . . . Utility 4 | 1 2 . . 1 Device . | . . . . . Storage 4 | 1 2 . . 1 Processor . | . . . . . Hackware . | . . . . . Protection . | . . . . . Artifact . | . . . . . Weapon 10 | 3 1 . 4 2 Energy Gun 6 | 1 . . 3 2 Energy Cannon . | . . . . . Ballistic Gun 2 | 2 . . . . Ballistic Cannon . | . . . . . Launcher 2 | . 1 . 1 . Special Weapon . | . . . . . Impact Weapon . | . . . . . Slashing Weapon . | . . . . . Piercing Weapon . | . . . . . Special Melee Weapon . | . . . . . Unidentified Prototypes . | . . . . . Parts Lost 9 | . . 1 1 7 Power 2 | . . . 1 1 Propulsion 3 | . . 1 . 2 Utility . | . . . . . Weapon 4 | . . . . 4 Highest Loss Streak 7 | . . 1 1 7 Average Slot Usage (%) 73 | . 82 73 65 63 Engine 11 | . 14 14 9 . Treads 21 | . 28 16 16 20 Storage 25 | . 25 28 22 22 Energy Gun 5 | . 5 . 9 10 Launcher 10 | . 8 14 7 9 Naked Turns . | . . . . . Heaviest Build 41 | 11 40 40 41 36 Greatest Support 40 | 40 40 40 40 40 Greatest Overweight (x) 1 | 1 . 1 1 1 Average Overweight (x) . | . . . . . Largest Inventory Capacity 18 | 6 16 16 16 18 Average Capacity 14 | 5 13 16 16 16 Most Carried 5 | 2 3 4 5 5 Average Carried 3 | . 2 3 4 4 Final Capacity 18 | 6 16 16 16 18 Final Carried 5 | 1 3 4 5 1 Class Distribution -------------------- 100% | Mutant Dominant Class ---------------- Mutant | -10/Materials Mutant | -10/Mines Mutant | -9/Materials Mutant | -9/Mines Resources | -11 -10 -10 -9 -9 ----------- Run | Scr Mat Min Mat Min Matter Collected 535 | 168 146 . 221 . Remotely . | . . . . . Salvage Created 403 | . 290 113 . . Parts 39 | . 35 4 . . Haulers Intercepted . | . . . . . Recyclers Shooed . | . . . . . Parts Field Recycled . | . . . . . Retrieved Matter . | . . . . . Parts Self-Destructed . | . . . . . Prevented . | . . . . . Kills | -11 -10 -10 -9 -9 ------- Run | Scr Mat Min Mat Min Combat Hostiles Destroyed 19 | . 15 4 . . Guns 3 | . 3 . . . AOE 16 | . 12 4 . . Classes Destroyed 4 | . 4 . . . Builder 1 | . 1 . . . Watcher 2 | . 2 . . . Swarmer 9 | . 9 . . . Grunt 10 | . 6 4 . . Best Kill Streak 7 | . 7 2 . . Combat Bots Only 6 | . 6 2 . . Max Kills in Single Turn 4 | . 4 1 . . Gunslinging . | . . . . . Exploded 3 | . 3 1 . . Melee . | . . . . . Uniques/NPCs Destroyed . | . . . . . Combat | -11 -10 -10 -9 -9 -------- Run | Scr Mat Min Mat Min Damage Taken 1372 | . 309 179 85 799 Core 467 | . 44 17 28 378 Absorbed by Shields . | . . . . . Core Remaining (%) 87 | 100 . 75 . . Volleys Fired 32 | . 21 8 . 3 Largest 2 | . 1 1 . 2 Hottest 90 | . 50 30 . 90 Shots Fired 33 | . 21 8 . 4 Gun 13 | . 10 . . 3 Cannon . | . . . . . Launcher 20 | . 11 8 . 1 Special . | . . . . . Kinetic . | . . . . . Thermal 13 | . 10 . . 3 Explosive 20 | . 11 8 . 1 Electromagnetic . | . . . . . Robot Hit Streak 7 | . 7 5 . 6 Robot Miss Streak 3 | . 3 1 . 1 Penetration Max . | . . . . . Secondary Targets . | . . . . . Shots Hit Robots 20 | . 12 6 . 2 Core Hits 34 | . 24 8 . 2 Critical Hits . | . . . . . Critical Kills . | . . . . . Critical Parts Destroyed . | . . . . . Melee Attacks . | . . . . . Impact . | . . . . . Slashing . | . . . . . Piercing . | . . . . . Sneak Attacks . | . . . . . Combat Hostiles . | . . . . . Follow-up Attacks . | . . . . . Damage Inflicted 1263 | . 900 269 6 88 Guns 88 | . 63 . . 25 Cannons . | . . . . . Explosions 1168 | . 837 269 . 62 Melee . | . . . . . Ramming 7 | . . . 6 1 Kinetic . | . . . . . Thermal 88 | . 63 . . 25 Explosive 1168 | . 837 269 . 62 Electromagnetic . | . . . . . Impact . | . . . . . Slashing . | . . . . . Piercing . | . . . . . Highest Corruption . | . . . . . Average Corruption . | . . . . . Corruption Purged . | . . . . . Overload Shots . | . . . . . Overflow Damage 41 | . 18 14 . 9 Projectiles . | . . . . . Explosions 41 | . 18 14 . 9 Melee . | . . . . . Knockbacks . | . . . . . Impact . | . . . . . Kinetic . | . . . . . Secondary . | . . . . . Self-Inflicted Damage 160 | . 61 60 . 39 Shots 5 | . 2 2 . 1 Rammed 3 | . . . 2 1 Targets Rammed 3 | . . . 2 1 Kicked . | . . . . . Crushed . | . . . . . Highest Temperature 90 | . 90 4 . 6 Average Temperature 30 | . 38 4 . 4 Received Heat Transfer 155 | . 42 66 27 20 Siege Activations . | . . . . . Robots Corrupted . | . . . . . Combat Hostiles . | . . . . . Parts Fried . | . . . . . Impact Corruptions . | . . . . . Robots Melted . | . . . . . Combat Hostiles . | . . . . . Parts Melted . | . . . . . Heat Transferred 247 | . 185 . . 62 Parts Sabotaged . | . . . . . Parts Stolen . | . . . . . Parts Stripped . | . . . . . Power Chain Reactions . | . . . . . Missiles Intercepted . | . . . . . Alert | -11 -10 -10 -9 -9 ------- Run | Scr Mat Min Mat Min Peak Influence 252 | . 252 68 231 51 Initial 46 | . . 28 . 46 Average 72 | . 101 31 113 40 Maximum Alert Level 1 | . 1 . 1 . Low Security (%) 97 | 100 93 100 97 100 Level 1 2 | . 6 . 2 . Level 2 . | . . . . . Level 3 . | . . . . . Level 4 . | . . . . . Level 5 . | . . . . . High Security . | . . . . . Max Security . | . . . . . Squads Dispatched 8 | . 6 . 2 . Investigation 4 | . 3 . 1 . Extermination . | . . . . . Reinforcement 4 | . 3 . 1 . Assault . | . . . . . Garrison . | . . . . . Intercept . | . . . . . Construction Impeded . | . . . . . Haulers Reinforced . | . . . . . Stealth | -11 -10 -10 -9 -9 --------- Run | Scr Mat Min Mat Min Distress Signals 2 | . 2 . . . Communications Jammed . | . . . . . Distress Signals . | . . . . . Times Spotted 62 | . 29 4 14 15 Peak Tracking Total 18 | . 8 2 5 18 Tactical Retreats 1 | . . . 1 . Traps | -11 -10 -10 -9 -9 ------- Run | Scr Mat Min Mat Min Traps Triggered 3 | . 2 . 1 . Indirectly . | . . . . . Trap Hack Attempts . | . . . . . Triggered . | . . . . . Disarmed . | . . . . . Reprogrammed . | . . . . . Reused . | . . . . . Traps Extracted . | . . . . . Installed . | . . . . . Triggered . | . . . . . Machines | -11 -10 -10 -9 -9 ---------- Run | Scr Mat Min Mat Min Machines Disabled 2 | . . 1 . 1 Max in Single Turn 1 | . . 1 . . Machines Sabotaged . | . . . . . Garrisons Compromised . | . . . . . Overloaded Fab Kills . | . . . . . Fab Network Shutdowns . | . . . . . Hacking | -11 -10 -10 -9 -9 --------- Run | Scr Mat Min Mat Min Machines Accessed 1 | . 1 . . . Terminals 1 | . 1 . . . Fabricators . | . . . . . Repair Stations . | . . . . . Recycling Units . | . . . . . Scanalyzers . | . . . . . Garrison Access . | . . . . . Total Hacks 2 | . 2 . . . Successful . | . . . . . Failed 2 | . 2 . . . Catastrophic 1 | . 1 . . . Database Lockouts . | . . . . . Manual 2 | . 2 . . . Terminals 2 | . 2 . . . Fabricators . | . . . . . Repair Stations . | . . . . . Recycling Units . | . . . . . Scanalyzers . | . . . . . Garrison Access . | . . . . . Terminal Hacks . | . . . . . Fabricator Hacks . | . . . . . Repair Station Hacks . | . . . . . Recycling Unit Hacks . | . . . . . Scanalyzer . | . . . . . Garrison Access Hacks . | . . . . . Unauthorized Hacks . | . . . . . Terminals . | . . . . . Fabricators . | . . . . . Repair Stations . | . . . . . Recycling Units . | . . . . . Scanalyzers . | . . . . . Garrison Access . | . . . . . Data Cores Recovered . | . . . . . Used . | . . . . . Hacking Detections 1 | . 1 . . . Full Trace Events 1 | . 1 . . . Feedback Events . | . . . . . Feedback Blocked . | . . . . . Robot Schematics Acquired . | . . . . . Robots Built . | . . . . . Matter . | . . . . . Time . | . . . . . Total Robot Build Rating . | . . . . . Part Schematics Acquired . | . . . . . Parts Built . | . . . . . Matter . | . . . . . Time . | . . . . . Total Part Build Rating . | . . . . . Parts Repaired . | . . . . . Time . | . . . . . Parts Recycled . | . . . . . Recycled Matter . | . . . . . Retrieved Matter . | . . . . . Retrieved Components . | . . . . . Parts Scanalyzed . | . . . . . Part Schematics Acquired . | . . . . . Parts Damaged . | . . . . . Bothacking | -11 -10 -10 -9 -9 ------------ Run | Scr Mat Min Mat Min Used RIF Installer . | . . . . . Robots Hacked . | . . . . . Non-combat . | . . . . . Combat . | . . . . . Robot Hacks Applied . | . . . . . Relay Couplers Released . | . . . . . Robots Rewired . | . . . . . Allies Hacked . | . . . . . Hacks Repelled . | . . . . . Allies | -11 -10 -10 -9 -9 -------- Run | Scr Mat Min Mat Min Total Allies 6 | . . 4 . 2 Largest Group 4 | . . 4 4 3 Highest-Rated Group 71 | . . 71 71 61 Highest-Rated Ally 31 | . . 31 31 31 Total Orders . | . . . . . Ally Attacks 38 | . . . 34 4 Total Damage 518 | . . . 459 59 Kills 13 | . . . 12 1 Allies Corrupted . | . . . . . Allies Melted . | . . . . . Intel | -11 -10 -10 -9 -9 ------- Run | Scr Mat Min Mat Min Robot Analysis Total . | . . . . . Derelict Logs Recovered 3 | . . 2 . 1 Drone Launches . | . . . . . Drone Recoveries . | . . . . . Exploration | -11 -10 -10 -9 -9 ------------- Run | Scr Mat Min Mat Min Turns Passed 2877 | 90 1002 894 607 284 Spaces Moved 1652 | 60 595 495 340 162 Core 26 | 26 . . . . Treads 1626 | 34 595 495 340 162 Legs . | . . . . . Wheels . | . . . . . Hover . | . . . . . Flight . | . . . . . Fastest Speed 50 | 50 160 160 160 160 Average Speed 166 | 129 160 176 174 160 Slowest Speed 180 | 160 160 180 180 180 Overloaded Moves . | . . . . . Propulsion Burnouts . | . . . . . Robots Hopped . | . . . . . Cave-ins Triggered . | . . . . . Exploration Rate (%) 53 | 4 93 91 30 48 Regions Visited 4 Branch Regions 2 Pre-discovered Areas 2 | . . 1 . 1 Known Exits Taken 1 | . . . 1 . Unknown Exits Taken 3 | 1 1 1 . . Scrap Searched 3 | . . . . 3 Spaces Dug . | . . . . . Terrain Destroyed 116 | . 65 43 . 8 Melee . | . . . . . Projectile . | . . . . . AOE 116 | . 65 43 . 8 Terrain Rammed . | . . . . . Walls Destroyed . | . . . . . Machines Disabled . | . . . . . Actions | -11 -10 -10 -9 -9 --------- Run | Scr Mat Min Mat Min Total 1733 | 71 623 508 350 181 Wait 24 | . 4 5 4 11 Move 1648 | 59 594 494 339 162 Hop . | . . . . . Pick Up 3 | 1 1 1 . . Fast Attach 10 | 7 1 . 2 . Attach 4 | . . . . 4 Detach 2 | 2 . . . . Swap 5 | . 2 . 3 . Drop 2 | 2 . . . . Fire 32 | . 21 8 . 3 Melee . | . . . . . Ram . | . . . . . Kick . | . . . . . Crush 3 | . . . 2 1 Escape Stasis . | . . . . . Rewire . | . . . . . Trap . | . . . . . Miscellaneous . | . . . . . Route ------- -11/Scrapyard -10/Materials (discovered 4 exits: [*Mat x3] / [*Min]) -10/Mines (discovered 2 exits: [*Mat x2]) -9/Materials (discovered 2 exits: [*Mat] / *Min) -9/Mines (discovered 1 exit: [*Mat]) History --------- Turn | Location | Event 15 | -11/Scrapyard | Discovered new exit (range 12) 91 | -11/Scrapyard | Entered Materials 169 | -10/Materials | Discovered new exit (range 14) 213 | -10/Materials | Discovered new exit (range 15) 301 | -10/Materials | Build established: Mutant 636 | -10/Materials | Discovered new exit (range 13) 748 | -10/Materials | Discovered new exit (range 5) 1093 | -10/Materials | Entered Mines 1233 | -10/Mines | Discovered new exit (range 7) 1329 | -10/Mines | Received a Rocket Launcher from a helpful Derelict 1886 | -10/Mines | Assisted by bots powering up and referring to "LRC-V3" 1951 | -10/Mines | Learned location of Zion (-6) 1960 | -10/Mines | Discovered new exit (range 10) 1963 | -10/Mines | Received a Mining Laser from a helpful Derelict 1987 | -10/Mines | Entered Materials 1987 | -9/Materials | Accompanied by 4 allies 1987 | -9/Materials | Evolved 2 slots: Utility x2 1988 | -9/Materials | Identified exit to Mines 2503 | -9/Materials | Discovered new exit (range 15) 2594 | -9/Materials | Entered Mines 2594 | -9/Mines | Accompanied by 1 ally 2802 | -9/Mines | Discovered new exit (range 11) 2836 | -9/Mines | Assembled infested the area 2868 | -9/Mines | Core integrity fell below 50% 2875 | -9/Mines | Core integrity fell below 20% 2878 | -9/Mines | Destroyed by D-53 Grenadier with Mini Grenade Launcher Last Messages --------------- 02857_ as-17345 destroyed. 02858_ as-07843 destroyed. 02859_ Sml. Laser destroyed. 02861_ Lgt. Treads destroyed. 02861_ Med. Laser destroyed. 02864_ K-01 Serf collects debris. 02865_ Sml. Laser destroyed. 02866_ HV Slug penetrates Wall. 02867_ K-01 Serf collects debris. 02868_ The unstable cave ceiling collapses. 02868_ HV Slug penetrates Earth. 02868_ HV Slug penetrates Matter Pump. 02869_ The unstable cave ceiling collapses. 02871_ K-01 Serf collects debris. 02872_ HV Slug penetrates Matter Pump. 02873_ The unstable cave ceiling collapses. 02874_ HV Slug penetrates Earth. 02875_ The unstable cave ceiling collapses. 02876_ Lgt. Ion Engine destroyed. 02877_ The unstable cave ceiling collapses. Map ----- +----------------------------------------------------+ | ?????????????????????????????#### ####### #?????? | | ????????????????????????????????# ##????# #?????? | | ???????????????????????????????## ##???# #?????? | | ???????????????????????????????# ##??# #?????? | | ??????????????? ?????######### #??# |#?????? | | ?????????????# ?????# # ##?#!%#?????? | | ?????????????# #????# ## ###[!#?????? | | ????????????## #???# #### ## #?????? | | ????????????# ##?# #??## # #?????? | | ????????????? #?# < #???## # #?????? | | ?????????????? #?# #???## # #?????? | | ???????????????# #?# #??## # #?????? | | ????????????????# # #??# ## #?????# | | ????????????????# %* ### ###?# ### #???? | | ???????????????## # #??# ##?# #???? | | ?????????????### # #### #??# #??? | | ?????????##### = [! ### ##??# #??# | | ????????## #!% #?###????# ### | | ????? ### =%* ## #????????# # | | ???? #?# ###??????# ## | | ???? d ### #?????## ##? | | ????? """ d #### ####### ###?? | | ??????? # ### ##???# | | ??????? ## #???## | | ?????? != % ######## ##### | | ?????# %= @ #??????## | | ?????## #??????# %% | | ??????# #??????# ### # | | ??????## # ##??????# ### # | | ???????## ### #### #???????## ## # | | ????????##???## #???## #????????# # | | ??????????????###?????## #????????## ##### | | ????????????????????????# ####?????????######???? | | ?????????????????????????##??????????????????????? | | | | | | | | | | | | | | | | | | | | | | | | | | | | | | | | | +----------------------------------------------------+ Best States ------------- Heat Dissipation 28 Energy Generation 10 Energy Capacity 250 Matter Stores 300 Matter Capacity 300 Sight Range 16 Terrain Scan Density 10 Evasion (%) 40 Recoil Reduction 2 Item Schematics ----------------- None Robot Schematics ------------------ None Fabricated ------------ Nothing Alien Tech Used ----------------- None Achievements -------------- None Challenges ------------ None Game ------ Seed ProtonShockChainsword Manual? 0 Play Time 00:11:59 Cumulative 198.0 hours Start 2021.07.03 @ 21:12:26 End 2021.07.03 @ 21:22:46 Sessions 1 Manual Loads 0 Difficulty Rogue Special Mode None Game No. 250 Rogue 163 Adventurer 87 Explorer 0 Win Type - Total 4 Types 3/0/0/1/0/0/0/0/0 Lore% 68 Gallery% 76 Achievement% 62 Wizard Run 0 Options --------- ASCII 0 Keyboard 1 Movement Numpad Keybinds 0 Fullscreen 1 Font 18/Smallcaps Map View 76x50 Tactical HUD 1 Map Filters NONE Filters NONE Steam 1 RUN: f3cb5b3b-699e-45cf-8dc3-6a63030be3b2